bitfinex-derivatives/quotes_BTCF0:USTF0_20241006
["timestamp","ask_amount","ask_price","bid_price","bid_amount"]
[1728179172519,0.176821,62088.0,62087.0,0.06550212]
[1728179172711,0.898421,62088.0,62087.0,0.06550212]
[1728179174519,0.898421,62088.0,62087.0,0.0174]
[1728179174905,0.98080288,62088.0,62087.0,0.0174]
[1728179179516,1.03127688,62088.0,62087.0,0.0174]
[1728179179924,0.98080288,62088.0,62087.0,0.0174]
[1728179180426,1.03127606,62088.0,62087.0,0.0174]
[1728179180613,0.98080288,62088.0,62087.0,0.0174]
[1728179181718,1.03127589,62088.0,62087.0,0.0174]
[1728179183125,0.898421,62088.0,62087.0,0.0174]
[1728179189914,1.03147724,62088.0,62087.0,0.0174]
[1728179190425,0.67067724,62088.0,62087.0,0.0174]
[1728179192613,1.03147724,62088.0,62087.0,0.0174]
[1728179193528,1.03148095,62088.0,62087.0,0.0174]
[1728179194716,1.19249584,62088.0,62087.0,0.0174]
[1728179195423,1.03148095,62088.0,62087.0,0.0174]
[1728179197915,0.898421,62088.0,62087.0,0.0174]
[1728179199617,0.788421,62088.0,62087.0,0.0174]
[1728179200020,0.788421,62088.0,62087.0,0.0583]
[1728179200730,0.427621,62088.0,62087.0,0.0583]
[1728179202425,0.427621,62088.0,62087.0,0.0174]
[1728179205022,0.72091623,62088.0,62087.0,0.0174]
[1728179205731,1.08171623,62088.0,62087.0,0.0174]
[1728179206826,1.19171623,62088.0,62087.0,0.0174]
[1728179207740,0.98666628,62088.0,62087.0,0.0174]
[1728179207935,0.66998892,62088.0,62087.0,0.0174]
[1728179208226,0.83100381,62088.0,62087.0,0.0174]
[1728179212028,0.47020381,62088.0,62087.0,0.0174]
[1728179212226,0.83100381,62088.0,62087.0,0.0174]
[1728179212736,0.47005821,62088.0,62087.0,0.0174]
[1728179212939,0.83085821,62088.0,62087.0,0.0174]
[1728179213123,0.537621,62088.0,62087.0,0.0174]
[1728179213529,0.176821,62088.0,62087.0,0.0174]
[1728179213829,0.537621,62088.0,62087.0,0.0174]
[1728179215842,0.176821,62088.0,62087.0,0.0174]
[1728179216028,0.537621,62088.0,62087.0,0.0174]
[1728179218038,0.176821,62088.0,62087.0,0.0174]
[1728179218333,0.537621,62088.0,62087.0,0.0174]
[1728179219246,0.537621,62088.0,62087.0,0.08165217]
[1728179220338,0.176821,62088.0,62087.0,0.08165217]
[1728179220539,0.898421,62088.0,62087.0,0.08165217]
[1728179222541,0.176821,62088.0,62087.0,0.08165217]
[1728179222842,0.898421,62088.0,62087.0,0.08165217]
[1728179228140,0.898421,62088.0,62082.0,0.0054]
[1728179228141,0.064426,62083.0,62082.0,0.0054]
[1728179228338,0.22557213,62083.0,62082.0,0.0016]
[1728179228540,0.35751455,62083.0,62082.0,0.0016]
[1728179229339,0.35751455,62083.0,62082.0,0.0156]
[1728179229543,0.35851455,62083.0,62082.0,0.0156]
[1728179229939,0.35851455,62083.0,62082.0,0.0086]
[1728179230247,0.35951455,62083.0,62082.0,0.0156]
[1728179231147,0.46951455,62083.0,62082.0,0.0156]
[1728179231344,0.30836842,62083.0,62082.0,0.0156]
[1728179233436,0.33765141,62083.0,62082.0,0.0156]
[1728179235149,0.20610899,62083.0,62082.0,0.1225782]
[1728179240646,0.176826,62083.0,62082.0,0.1225782]
[1728179240861,0.0024,62083.0,62082.0,0.1225782]
[1728179243240,0.0024,62083.0,62082.0,0.21894795]
[1728179244649,0.0024,62083.0,62082.0,0.1225782]
[1728179246466,0.0024,62083.0,62082.0,0.21894009]
[1728179248069,0.3632,62083.0,62082.0,0.21894009]
[1728179249070,0.0024,62083.0,62082.0,0.21894009]
[1728179249271,0.3632,62083.0,62082.0,0.21894009]
[1728179250171,0.63951957,62083.0,62082.0,0.0156]
[1728179252465,0.70394557,62083.0,62082.0,0.0156]
[1728179255269,0.66015708,62083.0,62082.0,0.0156]
[1728179255477,0.70389601,62083.0,62082.0,0.0156]
[1728179258173,0.427626,62083.0,62082.0,0.21880105]
[1728179261564,0.0103997,62085.0,62082.0,0.21880105]
[1728179261766,0.064425,62084.0,62083.0,0.10683916]
[1728179263177,0.065425,62084.0,62083.0,0.10783916]
[1728179264079,0.066425,62084.0,62083.0,0.10783916]
[1728179265375,0.066425,62084.0,62083.0,0.001]
[1728179265672,0.14782515,62084.0,62083.0,0.001]
[1728179270081,0.14784095,62084.0,62083.0,0.001]
[1728179271678,0.11,62086.0,62083.0,0.001]
[1728179271875,0.174423,62086.0,62085.0,0.0004]
[1728179272082,0.22424325,62086.0,62085.0,0.0004]
[1728179272383,0.174423,62086.0,62085.0,0.0004]
[1728179273175,0.176423,62086.0,62085.0,0.0024]
[1728179273375,0.176423,62086.0,62085.0,0.11094981]
[1728179274283,0.176423,62086.0,62085.0,0.2073117]
[1728179275275,0.176423,62086.0,62085.0,0.20731607]
[1728179279987,0.11,62089.0,62085.0,0.20731607]
[1728179280188,0.11,62089.0,62086.0,0.10855418]
[1728179280382,0.17442,62089.0,62088.0,0.0004]
[1728179280583,0.17442,62089.0,62088.0,0.00022702]
[1728179280584,0.26540917,62089.0,62088.0,0.00022702]
[1728179281789,0.30219382,62089.0,62088.0,0.00022702]
[1728179282284,0.30319382,62089.0,62088.0,0.00022702]
[1728179282786,0.30219382,62089.0,62088.0,0.00022702]
[1728179282981,0.30319382,62089.0,62088.0,0.00422702]
[1728179283186,0.30319382,62089.0,62088.0,0.00522702]
[1728179284991,0.11,62089.0,62088.0,0.00522702]
[1728179285592,0.17442,62089.0,62088.0,0.00522702]
[1728179288294,0.17442,62089.0,62088.0,0.11525889]
[1728179288689,0.17442,62089.0,62088.0,0.11529771]
[1728179291501,0.17442,62089.0,62088.0,0.19562532]
[1728179295402,0.17442,62089.0,62080.0,0.17357326]
[1728179295403,0.23273311,62089.0,62080.0,0.17357326]
[1728179295603,0.0004,62081.0,62080.0,0.17357326]
[1728179295804,0.07369152,62081.0,62080.0,0.17357326]
[1728179296003,0.07369152,62081.0,62076.0,0.10917819]
[1728179296199,0.0004,62079.0,62076.0,0.46997819]
[1728179296400,0.12313311,62079.0,62076.0,0.47093819]
[1728179297305,0.12513311,62079.0,62076.0,0.47093819]
[1728179297501,0.12613311,62079.0,62076.0,0.47093819]
[1728179298000,0.12613311,62079.0,62077.0,0.28671918]
[1728179298398,0.12431845,62079.0,62077.0,0.28671918]
[1728179300307,0.12431845,62079.0,62077.0,0.174432]
[1728179303104,0.12431845,62079.0,62077.0,0.535232]
[1728179303305,0.12431845,62079.0,62077.0,0.536112]
[1728179303512,0.0405,62092.0,62078.0,0.55246008]
[1728179303711,0.0405,62092.0,62079.0,0.24463646]
[1728179304005,0.174425,62084.0,62083.0,0.0004]
[1728179304309,0.20332899,62084.0,62083.0,0.24503646]
[1728179305215,0.20832899,62084.0,62083.0,0.24503646]
[1728179305898,0.20432899,62084.0,62083.0,0.24703646]
[1728179306102,0.20532899,62084.0,62083.0,0.24703646]
[1728179306510,0.20532899,62084.0,62083.0,0.25003646]
[1728179306707,0.14090399,62084.0,62083.0,0.25003646]
[1728179308311,0.14090399,62084.0,62083.0,0.24912091]
[1728179308509,0.112,62084.0,62083.0,0.24912091]
[1728179308709,0.002,62084.0,62083.0,0.24912091]
[1728179313218,0.002,62084.0,62083.0,0.24905581]
[1728179318230,0.002,62084.0,62083.0,0.24903404]
[1728179318419,0.14704091,62084.0,62083.0,0.0054]
[1728179318725,0.03458382,62084.0,62083.0,0.0054]
[1728179318927,0.18857222,62091.0,62086.0,0.064423]
[1728179318928,0.0113,62091.0,62086.0,0.064423]
[1728179319128,0.03944007,62090.0,62087.0,0.0404]
[1728179319312,0.03944007,62089.0,62087.0,0.0795]
[1728179319623,0.4295162,62095.0,62087.0,0.0795]
[1728179319821,0.03943929,62092.0,62091.0,0.11]
[1728179321720,0.04043929,62092.0,62091.0,0.113]
[1728179322625,0.0404395,62092.0,62091.0,0.113]
[1728179322926,0.0404395,62092.0,62091.0,0.117]
[1728179323117,0.0404395,62092.0,62091.0,0.007]
[1728179323321,0.2148565,62092.0,62091.0,0.007]
[1728179323521,0.2543565,62092.0,62091.0,0.007]
[1728179325634,0.214917,62092.0,62091.0,0.007]
[1728179333623,0.2868004,62092.0,62091.0,0.007]
[1728179337233,0.33623785,62092.0,62091.0,0.007]
[1728179337439,0.2868112,62092.0,62091.0,0.007]
[1728179337934,0.48128895,62092.0,62091.0,0.007]
[1728179339732,0.33624804,62092.0,62091.0,0.007]
[1728179340035,0.48113749,62092.0,62091.0,0.007]
[1728179340637,0.48113749,62092.0,62091.0,0.08732493]
[1728179340638,0.214917,62092.0,62091.0,0.08732493]
[1728179341135,0.214917,62092.0,62091.0,0.19837266]
[1728179342331,0.214917,62092.0,62091.0,0.19838201]
[1728179343428,0.214917,62092.0,62091.0,0.19843238]
[1728179343635,0.214917,62092.0,62091.0,0.08732493]
[1728179344330,0.214917,62092.0,62091.0,0.19843719]
[1728179347529,0.214917,62092.0,62091.0,0.11811226]
[1728179347726,0.214917,62092.0,62091.0,0.1983708]
[1728179347934,0.214917,62092.0,62091.0,0.08725854]
[1728179348538,0.33617861,62092.0,62091.0,0.007]
[1728179348843,0.39394779,62092.0,62091.0,0.007]
[1728179350034,0.75474779,62092.0,62091.0,0.007]
[1728179350738,0.75474819,62092.0,62091.0,0.007]
[1728179353849,0.75474819,62092.0,62084.0,0.0038]
[1728179353850,0.064424,62085.0,62084.0,0.0038]
[1728179354148,0.064425,62084.0,62083.0,0.0004]
[1728179354443,0.18608701,62084.0,62083.0,0.0004]
[1728179354648,0.25908701,62084.0,62083.0,0.0004]
[1728179354852,0.61988701,62084.0,62077.0,0.0038]
[1728179355150,0.064432,62077.0,62076.0,0.0004]
[1728179355340,0.18563463,62077.0,62076.0,0.0004]
[1728179355746,0.064832,62077.0,62076.0,0.11200561]
[1728179356249,0.064832,62077.0,62076.0,0.19223466]
[1728179356453,0.092832,62077.0,62076.0,0.19223466]
[1728179357151,0.092832,62077.0,62076.0,0.0004]
[1728179359954,0.453632,62077.0,62076.0,0.0004]
[1728179360646,0.453632,62077.0,62076.0,0.06453094]
[1728179361251,0.453632,62077.0,62076.0,0.0004]
[1728179361452,0.453632,62077.0,62076.0,0.06453094]
[1728179362266,0.453632,62077.0,62076.0,0.0004]
[1728179363362,0.48317092,62077.0,62076.0,0.0004]
[1728179364167,0.48317092,62077.0,62076.0,0.04848019]
[1728179364471,0.48317092,62077.0,62076.0,0.0004]
[1728179365270,0.46917092,62077.0,62076.0,0.0004]
[1728179365467,0.47017092,62077.0,62076.0,0.0004]
[1728179365668,0.45717092,62077.0,62076.0,0.0004]
[1728179367059,0.45717092,62077.0,62076.0,0.0008]
[1728179372267,0.09637092,62077.0,62076.0,0.0008]
[1728179372575,0.45717092,62077.0,62076.0,0.0008]
[1728179376376,0.09637092,62077.0,62076.0,0.0008]
[1728179376568,0.45717092,62077.0,62076.0,0.0008]
[1728179377373,0.48881136,62077.0,62076.0,0.0008]
[1728179377775,0.45717092,62077.0,62076.0,0.0008]
[1728179378075,0.45717092,62077.0,62076.0,0.04888019]
[1728179380179,0.45717092,62077.0,62076.0,0.0008]
[1728179382084,0.45717092,62077.0,62076.0,0.0012]
[1728179382973,0.09637092,62077.0,62076.0,0.0012]
[1728179383286,0.45717092,62077.0,62076.0,0.0012]
[1728179385684,0.5777593,62077.0,62076.0,0.0012]
[1728179386279,0.2169593,62077.0,62076.0,0.0012]
[1728179386582,0.5777593,62077.0,62076.0,0.0012]
[1728179387980,0.2169593,62077.0,62076.0,0.0012]
[1728179388286,0.5777593,62077.0,62076.0,0.0012]
[1728179389483,0.57772787,62077.0,62076.0,0.0012]
[1728179392082,0.39412802,62077.0,62076.0,0.0012]
[1728179392391,0.75492802,62077.0,62076.0,0.0012]
[1728179392779,0.63437107,62077.0,62076.0,0.0012]
[1728179392974,0.45717092,62077.0,62076.0,0.0012]
[1728179393875,0.09637092,62077.0,62076.0,0.0012]
[1728179394081,0.45717092,62077.0,62076.0,0.0012]
[1728179395085,0.09637092,62077.0,62076.0,0.0012]
[1728179395302,0.45717092,62077.0,62076.0,0.0012]
[1728179395478,0.09537092,62077.0,62076.0,0.0012]
[1728179395683,0.45717092,62077.0,62076.0,0.0012]
[1728179396385,0.09637092,62077.0,62076.0,0.0012]
[1728179396586,0.45717092,62077.0,62076.0,0.0012]
[1728179397093,0.09637092,62077.0,62076.0,0.0016]
[1728179397491,0.45717092,62077.0,62076.0,0.0016]
[1728179398295,0.22003492,62079.0,62076.0,0.0016]
[1728179398594,0.22003492,62079.0,62078.0,0.06469489]
[1728179399491,0.06443,62079.0,62078.0,0.06509489]
[1728179400192,0.17643,62079.0,62078.0,0.06609489]
[1728179401380,0.17643,62079.0,62078.0,0.06709489]
[1728179401585,0.20594592,62079.0,62078.0,0.06709489]
[1728179401998,0.09594592,62079.0,62078.0,0.06709489]
[1728179402191,0.09594592,62079.0,62078.0,0.3636]
[1728179402397,0.09594592,62079.0,62078.0,0.47545824]
[1728179402990,0.09594592,62079.0,62078.0,0.51329519]
[1728179403499,0.002,62079.0,62078.0,0.51329519]
[1728179404998,0.064426,62083.0,62078.0,0.62329519]
[1728179405301,0.0004,62084.0,62081.0,0.20638991]
[1728179405497,0.0004,62084.0,62082.0,0.59523519]
[1728179405797,0.0004,62084.0,62083.0,0.11199519]
[1728179406002,0.0004,62084.0,62083.0,0.59523519]
[1728179406204,0.0004,62085.0,62083.0,1.19492025]
[1728179406501,0.0113,62089.0,62084.0,1.06568025]
[1728179406705,0.0113,62092.0,62088.0,0.1104]
[1728179406898,0.1104,62093.0,62091.0,0.0004]
[1728179407502,0.1104,62093.0,62092.0,0.04809498]
[1728179408007,0.1104,62093.0,62086.0,0.11]
[1728179408008,0.23162868,62093.0,62086.0,0.11]
[1728179408197,0.0004,62087.0,62086.0,0.11]
[1728179408503,0.12162868,62087.0,62086.0,0.11]
[1728179409804,0.12162868,62087.0,62086.0,0.113]
[1728179410200,0.12162868,62087.0,62086.0,0.8346]
[1728179410702,0.12262868,62087.0,62086.0,0.8376]
[1728179411107,0.12262868,62087.0,62086.0,0.1567]
[1728179411307,0.12262868,62087.0,62086.0,0.8783]
[1728179411807,0.12262868,62087.0,62086.0,0.1567]
[1728179412006,0.12262868,62087.0,62086.0,0.8783]
[1728179412408,0.12139283,62087.0,62086.0,0.8783]
[1728179412810,0.12139283,62087.0,62086.0,0.1567]
[1728179413003,0.12139283,62087.0,62086.0,0.8783]
[1728179416007,0.0014,62087.0,62086.0,0.8783]
[1728179416511,0.0014,62087.0,62086.0,0.5175]
[1728179423013,0.07195633,62087.0,62086.0,0.21124251]
[1728179423717,0.12139575,62087.0,62086.0,0.21124251]
[1728179426510,0.12139575,62087.0,62086.0,0.3608]
[1728179427020,0.12139579,62087.0,62086.0,0.3608]
[1728179427723,0.12139579,62087.0,62085.0,0.0375]
[1728179428027,0.12039579,62086.0,62085.0,0.0375]
[1728179428316,0.12039579,62086.0,62085.0,0.3983]
[1728179429625,0.12139579,62086.0,62085.0,0.3983]
[1728179429919,0.12239579,62086.0,62085.0,0.3983]
[1728179430833,0.12239579,62086.0,62085.0,0.0375]
[1728179431015,0.06442,62089.0,62085.0,0.0375]
[1728179431016,0.02692296,62089.0,62085.0,0.51381649]
[1728179431215,0.02692296,62089.0,62086.0,0.19569682]
[1728179431416,0.02692296,62089.0,62088.0,0.08018033]
[1728179432417,0.02692296,62089.0,62088.0,0.19550624]
[1728179433436,0.02692296,62089.0,62088.0,0.47612591]
[1728179434329,0.02692296,62089.0,62088.0,0.11532591]
[1728179434522,0.02692296,62089.0,62088.0,0.47612591]
[1728179436324,0.02692296,62089.0,62088.0,0.57251582]
[1728179438131,0.09747814,62089.0,62088.0,0.23185158]
[1728179438325,0.14691676,62089.0,62088.0,0.23185158]
[1728179446127,0.02692296,62089.0,62088.0,0.23185158]
[1728179447535,0.11,62092.0,62088.0,0.23185158]
[1728179447732,0.11,62092.0,62091.0,0.0642382]
[1728179448539,0.174417,62092.0,62091.0,0.0642382]
[1728179449030,0.175417,62092.0,62091.0,0.0642382]
[1728179455432,0.111,62092.0,62090.0,0.0642382]
[1728179455633,0.064418,62091.0,62090.0,0.0642382]
[1728179455827,0.064818,62091.0,62088.0,0.23185158]
[1728179456038,0.0004,62089.0,62088.0,0.23185158]
[1728179460541,0.0004,62089.0,62088.0,0.31216719]
[1728179461040,0.0709544,62089.0,62088.0,0.12035367]
[1728179461436,0.12039247,62089.0,62088.0,0.12035367]
[1728179462847,0.12039247,62089.0,62085.0,0.0375]
[1728179463042,0.0004,62086.0,62085.0,0.0375]
[1728179463239,0.03151224,62086.0,62085.0,0.0375]
[1728179463550,0.12039247,62086.0,62085.0,0.0375]
[1728179464843,0.12139247,62086.0,62085.0,0.0375]
[1728179465637,0.12239247,62086.0,62085.0,0.0375]
[1728179466350,0.12239351,62086.0,62085.0,0.0375]
[1728179468134,0.06482,62089.0,62085.0,0.29411661]
[1728179468338,0.0004,62089.0,62086.0,0.25661661]
[1728179468551,0.0004,62089.0,62087.0,0.25661661]
[1728179468847,0.0004,62089.0,62088.0,0.25661661]
[1728179469348,0.064821,62089.0,62088.0,0.25661661]
[1728179469548,0.064821,62089.0,62088.0,0.25701661]
[1728179475155,0.0004,62089.0,62088.0,0.25701661]
[1728179476045,0.42661965,62093.0,62088.0,0.11747073]
[1728179476256,0.064417,62092.0,62089.0,0.19732999]
[1728179476456,0.064417,62092.0,62089.0,0.08025926]
[1728179477144,0.064417,62092.0,62089.0,0.08065926]
[1728179478550,0.065417,62092.0,62089.0,0.08065926]
[1728179483361,0.11998997,62091.0,62084.0,0.51334357]
[1728179483553,0.0004,62085.0,62084.0,0.51250357]
[1728179483753,0.03151159,62085.0,62084.0,0.51250357]
[1728179484557,0.12038997,62085.0,62084.0,0.51250357]
[1728179485959,0.12238997,62085.0,62084.0,0.51350357]
[1728179487164,0.23238997,62085.0,62084.0,0.37437]
[1728179487369,0.29681397,62085.0,62084.0,0.001]
[1728179490158,0.176824,62085.0,62084.0,0.25771642]
[1728179493059,0.1124,62085.0,62084.0,0.25771642]
[1728179493268,0.0024,62085.0,62084.0,0.25771642]
[1728179493464,0.0024,62085.0,62084.0,0.36771642]
[1728179498069,0.01040807,62087.0,62084.0,0.36771642]
[1728179498271,0.07055518,62086.0,62084.0,0.111]
[1728179498472,0.07055518,62085.0,62084.0,0.111]
[1728179498669,0.07055518,62086.0,62084.0,0.111]
[1728179498883,0.07055518,62085.0,62084.0,0.111]
[1728179499088,0.064423,62087.0,62084.0,0.111]
[1728179499089,0.07055518,62086.0,62084.0,0.111]
[1728179499286,0.07055518,62086.0,62084.0,0.1104]
[1728179499472,0.07155518,62086.0,62084.0,0.1114]
[1728179499672,0.07055518,62085.0,62084.0,0.1114]
[1728179500981,0.07255518,62085.0,62084.0,0.1134]
[1728179501487,0.07255518,62085.0,62084.0,0.0034]
[1728179503483,0.07255527,62085.0,62084.0,0.0034]
[1728179504990,0.07255477,62085.0,62084.0,0.0034]
[1728179505174,0.002,62085.0,62084.0,0.25982966]
[1728179513286,0.03311216,62085.0,62084.0,0.0034]
[1728179513488,0.12199219,62085.0,62082.0,0.47216]
[1728179513788,0.0004,62083.0,62082.0,0.4712]
[1728179514088,0.12039219,62083.0,62082.0,0.4712]
[1728179514784,0.12039219,62083.0,62082.0,0.4722]
[1728179514986,0.0004,62083.0,62082.0,0.4722]
[1728179515194,0.03151229,62083.0,62082.0,0.4722]
[1728179515389,0.12139268,62083.0,62082.0,0.4722]
[1728179516994,0.12239268,62083.0,62082.0,0.4712]
[1728179518194,0.12239244,62083.0,62082.0,0.4712]
[1728179520298,0.0024,62083.0,62082.0,0.72770952]
[1728179520998,0.064423,62086.0,62082.0,0.72770952]
[1728179520999,0.02652741,62086.0,62082.0,0.72770952]
[1728179521195,0.02652741,62086.0,62083.0,0.25650952]
[1728179521400,0.02652741,62086.0,62084.0,0.25650952]
[1728179521599,0.02652741,62086.0,62085.0,0.25650952]
[1728179521899,0.17725241,62087.0,62085.0,0.36650952]
[1728179522205,0.17725241,62087.0,62086.0,0.25650952]
[1728179523894,0.001,62087.0,62086.0,0.25750952]
[1728179526696,0.001,62087.0,62086.0,0.25662164]
[1728179528310,0.001,62087.0,62086.0,0.001]
[1728179528311,0.1611508,62087.0,62086.0,0.001]
[1728179528499,0.21058723,62087.0,62086.0,0.001]
[1728179528696,0.28113928,62087.0,62086.0,0.001]
[1728179530001,0.11998848,62087.0,62086.0,0.001]
[1728179531503,0.11998754,62087.0,62086.0,0.001]
[1728179534110,0.11998866,62087.0,62086.0,0.001]
[1728179535313,0.17726588,62088.0,62086.0,0.25666381]
[1728179535507,0.17726588,62088.0,62087.0,0.25566381]
[1728179536508,0.17726588,62088.0,62087.0,0.25566018]
[1728179537013,0.17826588,62088.0,62087.0,0.25566018]
[1728179537413,0.17826588,62088.0,62087.0,0.25666018]
[1728179537815,0.17826588,62088.0,62087.0,0.25866018]
[1728179543315,0.17826588,62088.0,62087.0,0.11963533]
[1728179544319,0.001,62088.0,62087.0,0.11963533]
[1728179546421,0.001,62088.0,62087.0,0.11966451]
[1728179549919,0.111,62088.0,62087.0,0.11966451]
[1728179550424,0.18155348,62088.0,62083.0,0.3608]
[1728179550726,0.16219091,62087.0,62083.0,0.3608]
[1728179550917,0.0004,62084.0,62083.0,0.3608]
[1728179551114,0.03151183,62084.0,62083.0,0.3608]
[1728179551310,0.12039173,62084.0,62083.0,0.3608]
[1728179552717,0.12139173,62084.0,62083.0,0.3608]
[1728179553325,0.12239173,62084.0,62083.0,0.3608]
[1728179556123,0.12239178,62084.0,62083.0,0.3608]
[1728179558438,0.05020808,62087.0,62083.0,0.89072236]
[1728179558631,0.05020808,62087.0,62084.0,0.25589578]
[1728179558930,0.05020808,62087.0,62085.0,0.25589578]
[1728179559123,0.05020808,62087.0,62086.0,0.25589578]
[1728179559528,0.05020808,62087.0,62086.0,0.25629578]
[1728179559729,0.05120808,62087.0,62086.0,0.25629578]
[1728179561135,0.05120808,62087.0,62086.0,0.25538632]
[1728179561435,0.05120808,62087.0,62086.0,0.25638632]
[1728179562336,0.05120808,62087.0,62086.0,0.25838632]
[1728179566039,0.01091218,62087.0,62086.0,0.25838632]
[1728179566333,0.001,62087.0,62086.0,0.25838632]
[1728179566533,0.065422,62087.0,62086.0,0.25838632]
[1728179573539,0.13597654,62087.0,62082.0,0.112927]
[1728179573745,0.0004,62083.0,62082.0,0.112927]
[1728179573950,0.0315123,62083.0,62082.0,0.105427]
[1728179574443,0.12039271,62083.0,62082.0,0.105427]
[1728179574643,0.12039271,62083.0,62082.0,0.106427]
[1728179574945,0.12039271,62083.0,62082.0,0.107427]
[1728179575332,0.12139271,62083.0,62082.0,0.107427]
[1728179575838,0.12139244,62083.0,62082.0,0.107427]
[1728179577049,0.12139244,62083.0,62082.0,0.106427]
[1728179577050,0.12239244,62083.0,62082.0,0.106427]
[1728179577438,0.15105415,62083.0,62082.0,0.106427]
[1728179577741,0.12239244,62083.0,62082.0,0.106427]
[1728179580741,0.09361723,62087.0,62082.0,0.106427]
[1728179580742,0.09361723,62087.0,62082.0,0.52145349]
[1728179580946,0.09361723,62087.0,62083.0,0.52739971]
[1728179581243,0.09361723,62087.0,62084.0,0.36439832]
[1728179581450,0.09361723,62087.0,62085.0,0.25439832]
[1728179581745,0.09461723,62087.0,62086.0,0.25439832]
[1728179584140,0.09361723,62087.0,62086.0,0.25439832]
[1728179584347,0.09461723,62087.0,62086.0,0.25639832]
[1728179584741,0.09461723,62087.0,62086.0,0.25739832]
[1728179586752,0.09461723,62087.0,62086.0,0.003]
[1728179586949,0.09461723,62087.0,62086.0,0.25737319]
[1728179588540,0.21460925,62087.0,62086.0,0.003]
[1728179589150,0.21460891,62087.0,62086.0,0.003]
[1728179592949,0.21460891,62087.0,62086.0,0.3638]
[1728179593146,0.18541368,62087.0,62086.0,0.3638]
[1728179594151,0.12098775,62087.0,62086.0,0.3638]
[1728179595560,0.02899208,62090.0,62086.0,0.61796116]
[1728179595755,0.174418,62091.0,62087.0,0.25416116]
[1728179595956,0.174418,62091.0,62088.0,0.25416116]
[1728179596157,0.174418,62091.0,62089.0,0.25416116]
[1728179596354,0.174418,62091.0,62090.0,0.11595146]
[1728179597865,0.174418,62091.0,62090.0,0.11695146]
[1728179598165,0.2036822,62091.0,62090.0,0.11695146]
[1728179599061,0.2036822,62091.0,62090.0,0.11696698]
[1728179603462,0.32367141,62091.0,62090.0,0.001]
[1728179603663,0.68447141,62091.0,62085.0,0.0113]
[1728179603864,0.0004,62086.0,62085.0,0.0113]
[1728179604071,0.03151139,62086.0,62084.0,0.11]
[1728179604271,0.12038921,62085.0,62084.0,0.11]
[1728179605678,0.12138921,62085.0,62084.0,0.11]
[1728179606280,0.12238921,62085.0,62084.0,0.111]
[1728179609179,0.12238924,62085.0,62084.0,0.111]
[1728179610570,0.0024,62085.0,62084.0,0.64133939]
[1728179611177,0.06442,62089.0,62084.0,0.64133939]
[1728179611178,0.0269252,62089.0,62084.0,0.64133939]
[1728179611378,0.0269252,62089.0,62085.0,0.25620662]
[1728179611680,0.0269252,62089.0,62086.0,0.25620662]
[1728179611873,0.0269252,62089.0,62087.0,0.25620662]
[1728179612082,0.0269252,62089.0,62088.0,0.25620662]
[1728179613176,0.0269252,62089.0,62088.0,0.25720662]
[1728179613872,0.0269252,62089.0,62088.0,0.25686974]
[1728179614075,0.0269252,62089.0,62088.0,0.25658741]
[1728179618580,0.09747772,62089.0,62084.0,0.11]
[1728179618784,0.0004,62085.0,62084.0,0.11]
[1728179619082,0.03151141,62085.0,62084.0,0.11]
[1728179619282,0.12038928,62085.0,62084.0,0.11]
[1728179620081,0.12138928,62085.0,62084.0,0.111]
[1728179620979,0.12138928,62085.0,62084.0,0.112]
[1728179621594,0.12138928,62085.0,62084.0,0.111]
[1728179621780,0.12238928,62085.0,62084.0,0.112]
[1728179625583,0.064421,62088.0,62084.0,0.64136817]
[1728179625782,0.064421,62088.0,62085.0,0.25561926]
[1728179625993,0.064421,62088.0,62086.0,0.25561926]
[1728179626192,0.064421,62088.0,62087.0,0.25561926]
[1728179627294,0.065421,62088.0,62087.0,0.25661926]
[1728179628491,0.064421,62088.0,62087.0,0.25661926]
[1728179628694,0.065421,62088.0,62087.0,0.25861926]
[1728179631592,0.175421,62088.0,62087.0,0.25861926]
[1728179633299,0.536221,62088.0,62087.0,0.25861926]
[1728179633592,0.536221,62088.0,62087.0,0.21593306]
[1728179638298,0.426221,62088.0,62087.0,0.21593306]
[1728179638496,0.426221,62088.0,62087.0,0.11962773]
[1728179638692,0.426221,62088.0,62087.0,0.25862019]
[1728179640396,0.065421,62088.0,62087.0,0.25862019]
[1728179640598,0.135974,62088.0,62087.0,0.003]
[1728179647009,0.065421,62088.0,62087.0,0.003]
[1728179647812,0.09653212,62088.0,62087.0,0.003]
[1728179648110,0.13597286,62088.0,62087.0,0.003]
[1728179649109,0.065421,62088.0,62087.0,0.003]
[1728179649610,0.065421,62088.0,62087.0,0.25855838]
[1728179651106,0.065421,62088.0,62087.0,0.11958889]
[1728179651716,0.065421,62088.0,62087.0,0.003]
[1728179660316,0.32951309,62090.0,62087.0,0.25876688]
[1728179660520,0.39393309,62090.0,62088.0,0.25576688]
[1728179660717,0.39393309,62090.0,62089.0,0.11668401]
[1728179661920,0.39393309,62090.0,62089.0,0.11768401]
[1728179663122,0.39393309,62090.0,62089.0,0.001]
[1728179663123,0.51392288,62090.0,62089.0,0.001]
[1728179663423,0.51392288,62090.0,62089.0,0.004]
[1728179663627,0.67509015,62090.0,62089.0,0.004]
[1728179665226,0.34557706,62090.0,62089.0,0.004]
[1728179667125,0.22558727,62090.0,62089.0,0.004]
[1728179667320,0.34557714,62090.0,62089.0,0.004]
[1728179668530,0.18440987,62090.0,62089.0,0.004]
[1728179670631,0.54520987,62090.0,62089.0,0.004]
[1728179671128,0.42522,62090.0,62089.0,0.25844995]
[1728179671835,0.06442,62090.0,62089.0,0.25844995]
[1728179672029,0.42522,62090.0,62089.0,0.25844995]
[1728179672427,0.42522,62090.0,62089.0,0.12008321]
[1728179676528,0.06442,62090.0,62089.0,0.12008321]
[1728179676739,0.42522,62090.0,62089.0,0.12008321]
[1728179677637,0.06442,62090.0,62089.0,0.12008321]
[1728179678132,0.09553222,62090.0,62089.0,0.004]
[1728179678328,0.45633222,62090.0,62089.0,0.004]
[1728179679134,0.09553222,62090.0,62089.0,0.004]
[1728179679336,0.45633222,62090.0,62089.0,0.004]
[1728179681336,0.09553222,62090.0,62089.0,0.004]
[1728179681642,0.45633222,62090.0,62089.0,0.004]
[1728179682133,0.09553222,62090.0,62089.0,0.004]
[1728179682445,0.13497404,62090.0,62089.0,0.004]